fUST/lending_fUST_20250610
["ID","MTS","AMOUNT","RATE_DAILY","PERIOD"]
[365268725,1749570647740,-460.0,0.00021917,4]
[365268727,1749570647750,-380.0,0.00021917,4]
[365268729,1749570647759,-460.0,0.00021917,4]
[365268731,1749570647769,-460.0,0.00021917,4]
[365268733,1749570647778,-310.0,0.00021917,4]
[365268735,1749570647788,-460.0,0.00021917,4]
[365268737,1749570647798,-460.0,0.00021917,4]
[365268739,1749570647807,-160.0,0.00021917,4]
[365268741,1749570647816,-460.0,0.00021917,4]
[365268743,1749570647826,-460.0,0.00021917,4]
[365268745,1749570647836,-580.18082664,0.00021917,4]
[365268747,1749570647845,-460.0,0.00021917,4]
[365268749,1749570647855,-460.0,0.00021917,4]
[365268751,1749570647865,-460.0,0.00021917,4]
[365268753,1749570647874,-572.97641232,0.00021917,4]
[365268755,1749570647883,-1334.73,0.00021917,4]
[365268757,1749570647893,-460.0,0.00021917,4]
[365268759,1749570647902,-460.0,0.00021917,4]
[365268761,1749570647912,-330.0,0.00021917,4]
[365268763,1749570647921,-650.05,0.00021917,4]
[365268765,1749570647930,-460.0,0.00021917,4]
[365268767,1749570647940,-460.0,0.00021917,4]
[365268769,1749570647949,-460.0,0.00021917,4]
[365268771,1749570647959,-310.0,0.00021917,4]
[365268773,1749570647968,-460.0,0.00021917,4]
[365268775,1749570647977,-390.0,0.00021917,4]
[365268777,1749570647987,-331.40210787,0.00021917,4]
[365268779,1749570647997,-460.0,0.00021917,4]
[365268781,1749570648007,-812.5,0.00021917,4]
[365268783,1749570648017,-460.0,0.00021917,4]
[365268785,1749570648027,-825.32,0.00021917,4]
[365268787,1749570648037,-460.0,0.00021917,4]
[365268789,1749570648046,-460.0,0.00021917,4]
[365268791,1749570648056,-460.0,0.00021917,4]
[365268793,1749570648066,-460.0,0.00021917,4]
[365268795,1749570648075,-460.0,0.00021917,4]
[365268797,1749570648084,-460.0,0.00021917,4]
[365268798,1749570648093,-460.0,0.00021917,4]
[365268800,1749570648103,-527.68,0.00021917,4]
[365268802,1749570648113,-460.0,0.00021917,4]
[365268804,1749570648123,-460.0,0.00021917,4]
[365268806,1749570648132,-460.0,0.00021917,4]
[365268808,1749570648141,-400.0,0.00021917,4]
[365268810,1749570648150,-460.0,0.00021917,4]
[365268812,1749570648160,-370.0,0.00021917,4]
[365268814,1749570648169,-1047.45,0.00021917,4]
[365268816,1749570648179,-460.0,0.00021917,4]
[365268818,1749570648189,-410.0,0.00021917,4]
[365268820,1749570648198,-923.93,0.00021917,4]
[365268822,1749570648208,-549.64,0.00021917,4]
[365268824,1749570648217,-460.0,0.00021917,4]
[365268826,1749570648227,-460.0,0.00021917,4]
[365268828,1749570648237,-460.0,0.00021917,4]
[365268830,1749570648246,-400.0,0.00021917,4]
[365268832,1749570648255,-460.0,0.00021917,4]
[365268834,1749570648264,-460.0,0.00021917,4]
[365268836,1749570648274,-460.0,0.00021917,4]
[365268838,1749570648284,-716.15,0.00021917,4]
[365268840,1749570648293,-370.0,0.00021917,4]
[365268842,1749570648302,-460.0,0.00021917,4]
[365268844,1749570648311,-460.0,0.00021917,4]
[365268846,1749570648321,-602.2,0.00021917,4]
[365268848,1749570648330,-626.47,0.00021917,4]
[365268850,1749570648339,-460.0,0.00021917,2]
[365268851,1749570648348,-1679.86,0.00021917,4]
[365268853,1749570648359,-460.0,0.00021917,4]
[365268855,1749570648368,-460.0,0.00021917,4]
[365268857,1749570648377,-460.0,0.00021917,4]
[365268859,1749570648386,-460.0,0.00021917,4]
[365268861,1749570648396,-460.0,0.00021917,4]
[365268863,1749570648405,-460.0,0.00021917,4]
[365268865,1749570648414,-1525.67,0.00021917,4]
[365268867,1749570648424,-330.784115,0.00021917,4]
[365268869,1749570648434,-706.05,0.00021917,4]
[365268871,1749570648444,-698.81,0.00021917,4]
[365268873,1749570648454,-1554.25,0.00021917,4]
[365268875,1749570648463,-172.33142567,0.00021917,4]
[365268877,1749570648474,-460.0,0.00021917,4]
[365268879,1749570648486,-460.0,0.00021917,4]
[365268881,1749570648496,-460.0,0.00021917,4]
[365268883,1749570648505,-460.0,0.00021917,4]
[365268885,1749570648516,-460.0,0.00021917,4]
[365268887,1749570648525,-460.0,0.00021917,4]
[365268889,1749570648534,-1965.04,0.00021917,4]
[365268891,1749570648544,-460.0,0.00021917,4]
[365268893,1749570648554,-460.0,0.00021917,4]
[365268894,1749570648564,-297.73164484,0.00021917,4]
[365268895,1749570648574,-460.0,0.00021917,4]
[365268896,1749570648583,-260.0,0.00021917,4]
[365268897,1749570648594,-460.0,0.00021917,4]
[365268898,1749570648604,-814.81,0.00021917,4]
[365268899,1749570648613,-460.0,0.00021917,4]
[365268900,1749570648622,-460.0,0.00021917,4]
[365268901,1749570648632,-1416.8,0.00021917,4]
[365268902,1749570648644,-460.0,0.00021917,4]
[365268903,1749570648657,-460.0,0.00021917,4]
[365268904,1749570648672,-340.0,0.00021917,4]
[365268905,1749570648685,-300.0,0.00021917,4]
[365268906,1749570648700,-460.0,0.00021917,4]
[365268907,1749570648711,-460.0,0.00021917,4]
[365268908,1749570648724,-460.0,0.00021917,4]
[365268909,1749570648736,-460.0,0.00021917,4]
[365268910,1749570648747,-1837.17,0.00021917,4]
[365268911,1749570648760,-1153.37,0.00021917,4]
[365268912,1749570648773,-410.0,0.00021917,4]
[365268913,1749570648786,-460.0,0.00021917,4]
[365268914,1749570648798,-460.0,0.00021917,4]
[365268915,1749570648811,-469.59,0.00021917,4]
[365268917,1749570648825,-162.97705615,0.00021918,2]
[365268919,1749570648838,-500.0,0.00021921,2]
[365268921,1749570648850,-503.40524538,0.00021921,2]
[365268923,1749570648863,-500.0,0.00021921,2]
[365268925,1749570648876,-600.0,0.00021921,2]
[365268927,1749570648890,-1026.26156429,0.00021921,2]
[365268929,1749570648903,-500.0,0.00021999,2]
[365268932,1749570648917,-760.82263458,0.00021999,2]
[365268934,1749570648929,-760.82263458,0.00021999,2]
[365268936,1749570648947,-500.0,0.00021999,2]
[365268938,1749570648958,-760.82263458,0.00021999,2]
[365268940,1749570648969,-462.09869056,0.00021999,2]
[365268943,1749570648982,-760.82263458,0.00021999,2]
[365268945,1749570648993,-760.82263458,0.00021999,2]
[365268947,1749570649007,-760.82263458,0.00021999,2]
[365268949,1749570649020,-760.82263458,0.00021999,2]
[365268952,1749570649033,-760.82263458,0.00021999,2]
[365268954,1749570649046,-760.82263458,0.00021999,2]
[365268956,1749570649058,-760.82263458,0.00021999,2]
[365268959,1749570649071,-760.82263458,0.00021999,2]
[365268961,1749570649084,-43388.53,0.00022,2]
[365268963,1749570649099,-106395.94,0.00022,7]
[365268966,1749570649111,-1751.04223638,0.00022,2]
[365268968,1749570649122,-842.5625,0.00022,7]
[365268970,1749570649133,-186.0,0.00022,2]
[365268972,1749570649143,-171.0,0.00022,2]
[365268974,1749570649154,-662.84716369,0.00022003,6]
[365268976,1749570649168,-443.72833664,0.00022047,2]
[365268979,1749570649181,-662.84716369,0.00022141,6]
[365268981,1749570649196,-501.85277261,0.00022171,2]
[365268983,1749570649206,-502.03517044,0.00022171,2]
[365268985,1749570649217,-500.0,0.00022171,2]
[365268987,1749570649228,-151.0,0.00022191,7]
[365268990,1749570649239,-151.0,0.00022191,7]
[365268992,1749570649251,-320.0,0.00022191,4]
[365268994,1749570649262,-360.0,0.00022191,4]
[365268996,1749570649274,-360.0,0.00022191,4]
[365268998,1749570649285,-460.0,0.00022191,4]
[365269000,1749570649296,-353.5421688,0.00022191,4]
[365269002,1749570649308,-150.30721378,0.00022191,4]
[365269005,1749570649319,-460.0,0.00022191,4]
[365269007,1749570649331,-350.0,0.00022191,4]
[365269009,1749570649343,-460.0,0.00022191,4]
[365269011,1749570649355,-460.0,0.00022191,4]
[365269013,1749570649367,-547.98005441,0.00022191,4]
[365269016,1749570649381,-460.0,0.00022191,4]
[365269018,1749570649393,-360.0,0.00022191,4]
[365269020,1749570649404,-460.0,0.00022191,4]
[365269022,1749570649416,-330.0,0.00022191,4]
[365269024,1749570649427,-460.0,0.00022191,4]
[365269027,1749570649439,-1334.73,0.00022191,4]
[365269029,1749570649451,-460.0,0.00022191,4]
[365269031,1749570649462,-600.0,0.00022191,4]
[365269033,1749570649475,-650.05,0.00022191,4]
[365269035,1749570649489,-460.0,0.00022191,4]
[365269037,1749570649500,-460.0,0.00022191,4]
[365269040,1749570649511,-460.0,0.00022191,4]
[365269042,1749570649522,-460.0,0.00022191,4]
[365269044,1749570649534,-460.0,0.00022191,4]
[365269046,1749570649545,-812.5,0.00022191,4]
[365269048,1749570649557,-460.0,0.00022191,4]
[365269050,1749570649569,-825.32,0.00022191,4]
[365269053,1749570649580,-460.0,0.00022191,4]
[365269055,1749570649591,-460.0,0.00022191,4]
[365269057,1749570649604,-460.0,0.00022191,4]
[365269059,1749570649615,-460.0,0.00022191,4]
[365269061,1749570649627,-460.0,0.00022191,4]
[365269064,1749570649638,-460.0,0.00022191,4]
[365269066,1749570649649,-460.0,0.00022191,4]
[365269068,1749570649661,-527.68,0.00022191,4]
[365269070,1749570649672,-460.0,0.00022191,4]
[365269072,1749570649684,-460.0,0.00022191,4]
[365269075,1749570649697,-220.0,0.00022191,4]
[365269077,1749570649708,-460.0,0.00022191,4]
[365269079,1749570649719,-1047.45,0.00022191,4]
[365269081,1749570649731,-460.0,0.00022191,4]
[365269083,1749570649742,-923.93,0.00022191,4]
[365269086,1749570649753,-549.64,0.00022191,4]
[365269088,1749570649764,-460.0,0.00022191,4]
[365269090,1749570649775,-460.0,0.00022191,4]
[365269092,1749570649787,-460.0,0.00022191,4]
[365269094,1749570649798,-460.0,0.00022191,4]
[365269096,1749570649810,-460.0,0.00022191,4]
[365269099,1749570649821,-460.0,0.00022191,4]
[365269101,1749570649832,-716.15,0.00022191,4]
[365269103,1749570649843,-360.0,0.00022191,4]
[365269105,1749570649855,-460.0,0.00022191,4]
[365269107,1749570649867,-626.47,0.00022191,4]
[365269110,1749570649878,-460.0,0.00022191,2]
[365269112,1749570649890,-1679.86,0.00022191,4]
[365269114,1749570649901,-460.0,0.00022191,4]
[365269116,1749570649912,-460.0,0.00022191,4]
[365269118,1749570649923,-460.0,0.00022191,4]
[365269120,1749570649934,-460.0,0.00022191,4]
[365269123,1749570649947,-460.0,0.00022191,4]
[365269125,1749570649958,-460.0,0.00022191,4]
[365269127,1749570649969,-1525.67,0.00022191,4]
[365269129,1749570649981,-706.05,0.00022191,4]
[365269131,1749570649992,-698.81,0.00022191,4]
[365269134,1749570650004,-1554.25,0.00022191,4]
[365269136,1749570650015,-460.0,0.00022191,4]
[365269138,1749570650026,-460.0,0.00022191,4]
[365269140,1749570650038,-580.0,0.00022191,4]
[365269142,1749570650049,-195.13639792,0.00022191,4]
[365269144,1749570650060,-460.0,0.00022191,4]
[365269147,1749570650072,-460.0,0.00022191,4]
[365269149,1749570650083,-1965.04,0.00022191,4]
[365269151,1749570650095,-460.0,0.00022191,4]
[365269153,1749570650107,-460.0,0.00022191,4]
[365269156,1749570650118,-460.0,0.00022191,4]
[365269158,1749570650129,-460.0,0.00022191,4]
[365269160,1749570650140,-814.81,0.00022191,4]
[365269162,1749570650151,-460.0,0.00022191,4]
[365269164,1749570650162,-460.0,0.00022191,4]
[365269167,1749570650173,-1416.8,0.00022191,4]
[365269169,1749570650185,-360.0,0.00022191,4]
[365269188,1749570650353,-460.0,0.00022191,4]
[365269191,1749570650376,-420.0,0.00022191,4]
[365269193,1749570650387,-160.0,0.00022191,4]
[365269195,1749570650398,-460.0,0.00022191,4]
[365269197,1749570650408,-460.0,0.00022191,4]
[365269199,1749570650417,-1837.17,0.00022191,4]
[365269201,1749570650426,-1153.37,0.00022191,4]
[365269203,1749570650435,-247.06801446,0.00022191,4]
[365269205,1749570650448,-460.0,0.00022191,4]
[365269206,1749570650456,-469.59,0.00022191,4]
[365269208,1749570650466,-1541.67,0.000222,7]
[365269210,1749570650476,-179.69471741,0.000222,69]
[365269212,1749570650488,-443.72833664,0.00022275,2]
[365269215,1749570650498,-662.84716369,0.00022279,6]
[365269217,1749570650508,-160.0,0.00022282,2]
[365269219,1749570650518,-160.0,0.00022282,2]
[365269220,1749570650529,-229.6792923,0.00022282,2]
[365269222,1749570650538,-424.12530924,0.00022282,2]
[365269224,1749570650547,-160.0,0.00022282,2]
[365269226,1749570650557,-213.1263252,0.00022282,2]
[365269228,1749570650566,-11858.11761888,0.0002229,2]
[365269230,1749570650576,-842.5625,0.0002229,2]
[365269232,1749570650585,-160.0,0.00022323,2]
[365269234,1749570650595,-662.84716369,0.00022417,7]
[365269236,1749570650604,-515.72,0.00022455,3]
[365269238,1749570650613,-156.453536,0.00022465,7]
[365269240,1749570650623,-460.0,0.00022465,4]
[365269242,1749570650632,-460.0,0.00022465,4]
[365269244,1749570650642,-460.0,0.00022465,4]
[365269246,1749570650652,-460.0,0.00022465,4]
[365269248,1749570650661,-460.0,0.00022465,4]
[365269250,1749570650671,-460.0,0.00022465,4]
[365269252,1749570650681,-460.0,0.00022465,4]
[365269254,1749570650693,-1334.73,0.00022465,4]
[365269256,1749570650703,-280.0,0.00022465,4]
[365269258,1749570650712,-650.05,0.00022465,4]
[365269260,1749570650722,-460.0,0.00022465,4]
[365269262,1749570650732,-400.0,0.00022465,4]
[365269264,1749570650741,-400.0,0.00022465,4]
[365269266,1749570650751,-400.0,0.00022465,4]
[365269268,1749570650761,-333.64135818,0.00022465,4]
[365269270,1749570650771,-460.0,0.00022465,4]
[365269272,1749570650780,-460.0,0.00022465,4]
[365269274,1749570650790,-460.0,0.00022465,4]
[365269277,1749570650801,-460.0,0.00022465,4]
[365269279,1749570650810,-812.5,0.00022465,4]
[365269280,1749570650820,-460.0,0.00022465,4]
[365269283,1749570650830,-825.32,0.00022465,4]
[365269285,1749570650840,-460.0,0.00022465,4]
[365269286,1749570650850,-460.0,0.00022465,4]
[365269288,1749570650860,-460.0,0.00022465,4]
[365269290,1749570650870,-460.0,0.00022465,4]
[365269292,1749570650879,-460.0,0.00022465,4]
[365269294,1749570650888,-460.0,0.00022465,4]
[365269296,1749570650898,-416.27922572,0.00022465,4]
[365269298,1749570650908,-527.68,0.00022465,4]
[365269300,1749570650918,-460.0,0.00022465,4]
[365269302,1749570650927,-170.0,0.00022465,4]
[365269304,1749570650936,-460.0,0.00022465,4]
[365269306,1749570650947,-1047.45,0.00022465,4]
[365269308,1749570650957,-460.0,0.00022465,4]
[365269310,1749570650966,-923.93,0.00022465,4]
[365269312,1749570650975,-549.64,0.00022465,4]
[365269314,1749570650985,-460.0,0.00022465,4]
[365269316,1749570650994,-460.0,0.00022465,4]
[365269318,1749570651003,-460.0,0.00022465,4]
[365269320,1749570651012,-460.0,0.00022465,4]
[365269322,1749570651022,-460.0,0.00022465,4]
[365269324,1749570651031,-460.0,0.00022465,4]
[365269326,1749570651041,-716.15,0.00022465,4]
[365269328,1749570651050,-460.0,0.00022465,4]
[365269330,1749570651059,-626.47,0.00022465,4]
[365269332,1749570651068,-460.0,0.00022465,2]
[365269334,1749570651078,-1679.86,0.00022465,4]
[365269336,1749570651087,-460.0,0.00022465,4]
[365269338,1749570651097,-460.0,0.00022465,4]
[365269340,1749570651107,-460.0,0.00022465,4]
[365269342,1749570651116,-498.51251106,0.00022465,4]
[365269344,1749570651125,-460.0,0.00022465,4]
[365269346,1749570651135,-588.88946386,0.00022465,4]
[365269348,1749570651145,-1525.67,0.00022465,4]
[365269349,1749570651154,-706.05,0.00022465,4]
[365269350,1749570651164,-698.81,0.00022465,4]
[365269351,1749570651174,-1554.25,0.00022465,4]
[365269352,1749570651184,-460.0,0.00022465,4]
[365269353,1749570651194,-460.0,0.00022465,4]
[365269354,1749570651204,-460.0,0.00022465,4]
[365269355,1749570651213,-460.0,0.00022465,4]
[365269356,1749570651223,-1965.04,0.00022465,4]
[365269358,1749570651232,-460.0,0.00022465,4]
[365269360,1749570651241,-460.0,0.00022465,4]
[365269362,1749570651250,-460.0,0.00022465,4]
[365269364,1749570651260,-460.0,0.00022465,4]
[365269366,1749570651269,-814.81,0.00022465,4]
[365269368,1749570651278,-460.0,0.00022465,4]
[365269370,1749570651287,-460.0,0.00022465,4]
[365269372,1749570651296,-1416.8,0.00022465,4]
[365269374,1749570651306,-230.49067932,0.00022465,4]
[365269376,1749570651315,-202.2737234,0.00022465,4]
[365269378,1749570651325,-460.0,0.00022465,4]
[365269380,1749570651335,-1837.17,0.00022465,4]
[365269382,1749570651344,-1153.37,0.00022465,4]
[365269384,1749570651353,-460.0,0.00022465,4]
[365269386,1749570651362,-469.59,0.00022465,4]
[365269388,1749570651371,-3769.0,0.00022473,2]
[365269390,1749570651380,-662.84716369,0.00022555,7]
[365269392,1749570651390,-2426.61,0.0002257,2]
[365269394,1749570651400,-443.72833664,0.0002258,2]
[365269396,1749570651409,-500.0,0.00022673,2]
[365269398,1749570651419,-500.0,0.00022684,4]
[365269400,1749570651428,-281.16332978,0.00022684,4]
[365269402,1749570651438,-500.0,0.00022684,4]
[365269404,1749570651447,-166.49135998,0.00022684,4]
[365269406,1749570651457,-500.0,0.00022684,4]
[365269408,1749570651467,-500.0,0.00022684,4]
[365269410,1749570651477,-500.0,0.00022684,4]
[365269412,1749570651487,-151.0,0.00022684,4]
[365269414,1749570651497,-500.0,0.00022684,4]
[365269416,1749570651506,-151.0,0.00022684,4]
[365269418,1749570651516,-662.84716369,0.00022693,7]
[365269420,1749570651525,-500.0,0.00022711,4]
[365269422,1749570651535,-500.0,0.00022711,4]
[365269424,1749570651544,-500.0,0.00022711,4]
[365269426,1749570651554,-500.0,0.00022711,4]
[365269428,1749570651563,-500.0,0.00022711,4]
[365269430,1749570651573,-151.0,0.00022711,4]
[365269432,1749570651583,-500.83773021,0.00022711,4]
[365269434,1749570651592,-151.0,0.00022711,4]
[365269436,1749570651602,-500.0,0.00022733,2]
[365269438,1749570651611,-500.0,0.00022739,4]
[365269440,1749570651620,-500.0,0.00022739,4]
[365269442,1749570651630,-500.0,0.00022739,4]
[365269444,1749570651640,-500.0,0.00022739,4]
[365269446,1749570651650,-500.0,0.00022739,4]
[365269448,1749570651659,-151.0,0.00022739,4]
[365269450,1749570651669,-198.0,0.00022739,4]
[365269452,1749570651678,-460.0,0.00022739,4]
[365269454,1749570651688,-460.0,0.00022739,4]
[365269456,1749570651699,-460.0,0.00022739,4]
[365269458,1749570651708,-460.0,0.00022739,4]
[365269460,1749570651719,-460.0,0.00022739,4]
[365269463,1749570651730,-460.0,0.00022739,4]
[365269465,1749570651741,-460.0,0.00022739,4]
[365269467,1749570651752,-1334.73,0.00022739,4]
[365269469,1749570651762,-650.05,0.00022739,4]
[365269471,1749570651774,-460.0,0.00022739,4]
[365269473,1749570651785,-460.0,0.00022739,4]
[365269475,1749570651795,-460.0,0.00022739,4]
[365269477,1749570651805,-460.0,0.00022739,4]
[365269479,1749570651817,-460.0,0.00022739,4]
[365269481,1749570651828,-812.5,0.00022739,4]
[365269482,1749570651838,-460.0,0.00022739,4]
[365269484,1749570651848,-825.32,0.00022739,4]
[365269486,1749570651859,-460.0,0.00022739,4]
[365269488,1749570651870,-460.0,0.00022739,4]
[365269490,1749570651881,-460.0,0.00022739,4]
[365269492,1749570651891,-460.0,0.00022739,4]
[365269494,1749570651901,-460.0,0.00022739,4]
[365269496,1749570651912,-460.0,0.00022739,4]
[365269499,1749570651923,-527.68,0.00022739,4]
[365269501,1749570651933,-500.0,0.00022739,4]
[365269503,1749570651951,-460.0,0.00022739,4]
[365269505,1749570651962,-1047.45,0.00022739,4]
[365269507,1749570651972,-460.0,0.00022739,4]
[365269509,1749570651983,-923.93,0.00022739,4]
[365269511,1749570651994,-549.64,0.00022739,4]
[365269513,1749570652003,-460.0,0.00022739,4]
[365269515,1749570652013,-460.0,0.00022739,4]
[365269517,1749570652023,-460.0,0.00022739,4]
[365269519,1749570652033,-486.38101383,0.00022739,4]
[365269521,1749570652044,-460.0,0.00022739,4]
[365269523,1749570652055,-460.0,0.00022739,4]
[365269525,1749570652066,-716.15,0.00022739,4]
[365269527,1749570652076,-460.0,0.00022739,4]
[365269529,1749570652086,-626.47,0.00022739,4]
[365269531,1749570652096,-460.0,0.00022739,2]
[365269533,1749570652105,-1679.86,0.00022739,4]
[365269535,1749570652115,-460.0,0.00022739,4]
[365269537,1749570652124,-460.0,0.00022739,4]
[365269539,1749570652135,-460.0,0.00022739,4]
[365269542,1749570652144,-460.0,0.00022739,4]
[365269544,1749570652154,-1525.67,0.00022739,4]
[365269546,1749570652164,-706.05,0.00022739,4]
[365269548,1749570652174,-698.81,0.00022739,4]
[365269550,1749570652184,-1554.25,0.00022739,4]
[365269552,1749570652196,-460.0,0.00022739,4]
[365269554,1749570652206,-460.0,0.00022739,4]
[365269556,1749570652216,-460.0,0.00022739,4]
[365269558,1749570652225,-460.0,0.00022739,4]
[365269560,1749570652234,-1965.04,0.00022739,4]
[365269562,1749570652244,-460.0,0.00022739,4]
[365269564,1749570652254,-460.0,0.00022739,4]
[365269566,1749570652263,-460.0,0.00022739,4]
[365269568,1749570652273,-460.0,0.00022739,4]
[365269570,1749570652282,-814.81,0.00022739,4]
[365269572,1749570652292,-460.0,0.00022739,4]
[365269574,1749570652301,-290.70948469,0.00022739,4]
[365269576,1749570652311,-1416.8,0.00022739,4]
[365269578,1749570652320,-359.75,0.00022739,4]
[365269580,1749570652330,-1837.17,0.00022739,4]
[365269582,1749570652340,-1153.37,0.00022739,4]
[365269584,1749570652349,-460.0,0.00022739,4]
[365269586,1749570652358,-469.59,0.00022739,4]
[365269588,1749570652369,-5000.0,0.00022755,2]
[365269590,1749570652378,-207.4,0.00022755,2]
[365269592,1749570652387,-393.09372848,0.00022766,2]
[365269594,1749570652397,-500.0,0.00022766,4]
[365269596,1749570652406,-500.0,0.00022766,4]
[365269598,1749570652416,-500.0,0.00022766,4]
[365269600,1749570652425,-500.0,0.00022766,4]
[365269602,1749570652435,-537.31774589,0.00022766,4]
[365269604,1749570652445,-151.0,0.00022766,4]
[365269606,1749570652455,-587.0,0.00022776,2]
[365269608,1749570652464,-500.0,0.00022794,4]
[365269610,1749570652474,-500.0,0.00022794,4]
[365269611,1749570652487,-500.0,0.00022794,4]
[365269614,1749570652497,-500.0,0.00022794,4]
[365269616,1749570652506,-151.0,0.00022794,4]
[365269617,1749570652516,-500.0,0.00022821,4]
[365269619,1749570652526,-503.15818704,0.00022821,4]
[365269621,1749570652535,-245.0,0.00022821,4]
[365269624,1749570652545,-662.84716369,0.00022831,8]
[365269626,1749570652557,-500.0,0.00022848,4]
[365269627,1749570652566,-600.0,0.0002289,2]
[365269630,1749570652576,-935.0,0.00022895,2]
[365269632,1749570652586,-151.0,0.000229,9]
[365269634,1749570652595,-443.72833664,0.00022921,2]
[365269636,1749570652605,-662.84716369,0.00022969,8]
[365269638,1749570652614,-460.0,0.00023013,4]
[365269640,1749570652624,-300.0,0.00023013,4]
[365269642,1749570652633,-180.0,0.00023013,4]
[365269644,1749570652643,-460.0,0.00023013,4]
[365269646,1749570652652,-460.0,0.00023013,4]
[365269648,1749570652663,-237.79749337,0.00023013,4]
[365269650,1749570652672,-460.0,0.00023013,4]
[365269652,1749570652682,-1334.73,0.00023013,4]
[365269654,1749570652692,-650.05,0.00023013,4]
[365269656,1749570652702,-460.0,0.00023013,4]
[365269658,1749570652712,-460.0,0.00023013,4]
[365269660,1749570652721,-460.0,0.00023013,4]
[365269662,1749570652731,-460.0,0.00023013,4]
[365269664,1749570652740,-460.0,0.00023013,4]
[365269666,1749570652750,-812.5,0.00023013,4]
[365269667,1749570652760,-460.0,0.00023013,4]
[365269669,1749570652769,-825.32,0.00023013,4]
[365269671,1749570652779,-180.0,0.00023013,4]
[365269673,1749570652788,-460.0,0.00023013,4]
[365269675,1749570652798,-460.0,0.00023013,4]
[365269677,1749570652807,-460.0,0.00023013,4]
[365269679,1749570652817,-460.0,0.00023013,4]
[365269681,1749570652826,-460.0,0.00023013,4]
[365269683,1749570652836,-527.68,0.00023013,4]
[365269686,1749570652846,-329.2,0.00023013,4]
[365269688,1749570652855,-1047.45,0.00023013,4]
[365269690,1749570652865,-460.0,0.00023013,4]
[365269692,1749570652876,-923.93,0.00023013,4]
[365269694,1749570652886,-549.64,0.00023013,4]
[365269696,1749570652902,-460.0,0.00023013,4]
[365269698,1749570652915,-460.0,0.00023013,4]
[365269700,1749570652924,-460.0,0.00023013,4]
[365269702,1749570652934,-460.0,0.00023013,4]
[365269704,1749570652946,-220.0,0.00023013,4]
[365269706,1749570652955,-716.15,0.00023013,4]
[365269708,1749570652964,-460.0,0.00023013,4]
[365269709,1749570652974,-626.47,0.00023013,4]
[365269711,1749570652983,-460.0,0.00023013,2]
[365269714,1749570652992,-1679.86,0.00023013,4]
[365269716,1749570653002,-220.0,0.00023013,4]
[365269718,1749570653012,-460.0,0.00023013,4]
[365269719,1749570653021,-460.0,0.00023013,4]
[365269721,1749570653031,-460.0,0.00023013,4]
[365269723,1749570653040,-1525.67,0.00023013,4]
[365269725,1749570653050,-706.05,0.00023013,4]
[365269727,1749570653060,-698.81,0.00023013,4]
[365269729,1749570653069,-1554.25,0.00023013,4]
[365269731,1749570653079,-460.0,0.00023013,4]